bitfinex-derivatives/quotes_BTCF0:USTF0_20260207
["timestamp","ask_amount","ask_price","bid_price","bid_amount"]
[1770438454396,0.014003,71458.0,71388.0,0.2332]
[1770438454397,0.50365649,71451.0,71414.0,0.57417415]
[1770438454586,0.50365649,71451.0,71415.0,0.58818615]
[1770438454785,0.014007,71437.0,71415.0,0.57417415]
[1770438454996,0.50365649,71444.0,71404.0,0.57417415]
[1770438455495,0.014008,71433.0,71409.0,0.014013]
[1770438455695,0.48800019,71439.0,71407.0,0.014013]
[1770438455897,0.48800019,71435.0,71404.0,0.57417415]
[1770438456095,0.48800019,71435.0,71405.0,0.014014]
[1770438456096,0.014008,71432.0,71405.0,0.014014]
[1770438456498,0.014009,71429.0,71405.0,0.014014]
[1770438457190,0.4888625,71424.0,71390.0,0.54684918]
[1770438457397,0.4888625,71420.0,71391.0,0.014016]
[1770438457597,0.01382023,71412.0,71390.0,0.54684918]
[1770438457895,0.014013,71409.0,71387.0,0.014017]
[1770438458090,0.014013,71409.0,71383.0,0.014018]
[1770438458301,0.4888625,71420.0,71397.0,0.014015]
[1770438458491,0.014012,71413.0,71393.0,0.54684918]
[1770438458796,0.014012,71413.0,71388.0,0.014017]
[1770438460504,0.014013,71409.0,71384.0,0.014018]
[1770438460999,0.014014,71406.0,71382.0,0.54684918]
[1770438461390,0.014014,71406.0,71383.0,0.014018]
[1770438463204,0.49312686,71412.0,71377.0,0.16276285]
[1770438463501,0.49312686,71412.0,71367.0,0.27342051]
[1770438463502,0.49312686,71392.0,71361.0,0.54684918]
[1770438463692,0.014019,71380.0,71353.0,0.16276285]
[1770438463892,0.49312686,71392.0,71357.0,0.014023]
[1770438464103,0.49312686,71388.0,71358.0,0.21054457]
[1770438464403,0.01402,71375.0,71352.0,0.014024]
[1770438464700,0.01402,71375.0,71353.0,0.21055369]
[1770438464898,0.01402,71375.0,71352.0,0.014024]
[1770438465099,0.01402,71375.0,71351.0,0.54684918]
[1770438465300,0.014021,71368.0,71345.0,0.16276285]
[1770438465504,0.48963432,71368.0,71341.0,0.16276285]
[1770438465701,0.48963432,71377.0,71334.0,0.56087718]
[1770438465896,0.014022,71364.0,71338.0,0.014027]
[1770438466197,0.014023,71360.0,71334.0,0.54684918]
[1770438466398,0.48963432,71363.0,71330.0,0.014028]
[1770438466795,0.48963432,71359.0,71325.0,0.014029]
[1770438467000,0.014024,71354.0,71328.0,0.014029]
[1770438467201,0.014024,71351.0,71323.0,0.56087918]
[1770438467404,0.014024,71351.0,71324.0,0.21064331]
[1770438467600,0.48422512,71349.0,71321.0,0.01403]
[1770438467903,0.014026,71345.0,71316.0,0.014031]
[1770438468103,0.48422612,71345.0,71316.0,0.014031]
[1770438469606,0.48422612,71345.0,71300.0,0.20471828]
[1770438469607,0.014024,71351.0,71320.0,0.56087918]
[1770438470303,0.014024,71351.0,71323.0,0.16276285]
[1770438470499,0.014019,71379.0,71332.0,0.54684918]
[1770438470500,0.014023,71357.0,71332.0,0.54684918]
[1770438470707,0.47636126,71363.0,71326.0,0.16276285]
[1770438470900,0.014025,71348.0,71327.0,0.21065766]
[1770438471099,0.014025,71348.0,71328.0,0.21065766]
[1770438471305,0.014025,71348.0,71329.0,0.21065766]
[1770438471503,0.014025,71348.0,71324.0,0.16276285]
[1770438471704,0.014026,71342.0,71325.0,0.21065707]
[1770438472004,0.070107,71368.0,71319.0,0.17679285]
[1770438472005,0.48437877,71347.0,71319.0,0.17679285]
[1770438472204,0.48437877,71347.0,71320.0,0.21066749]
[1770438472410,0.47035377,71347.0,71321.0,0.31958575]
[1770438472707,0.014026,71341.0,71319.0,0.10891826]
[1770438472907,0.014027,71337.0,71318.0,0.10891826]
[1770438473104,0.47035377,71341.0,71316.0,0.10891826]
[1770438473297,0.47035377,71341.0,71311.0,0.10891826]
[1770438473298,0.014029,71330.0,71311.0,0.10891826]
[1770438473501,0.47035377,71341.0,71312.0,0.54684918]
[1770438473804,0.47035377,71341.0,71315.0,0.014031]
[1770438473805,0.014026,71340.0,71315.0,0.014031]
[1770438474218,0.014026,71340.0,71315.0,0.56088018]
[1770438474503,0.001,71347.0,71319.0,0.014031]
[1770438474504,0.014026,71344.0,71319.0,0.014031]
[1770438474704,0.014026,71344.0,71321.0,0.56087918]
[1770438475101,0.014026,71344.0,71321.0,0.54684918]
[1770438475303,0.014026,71340.0,71321.0,0.54684918]
[1770438475713,0.014026,71344.0,71321.0,0.54684918]
[1770438476112,0.014024,71352.0,71328.0,0.014029]
[1770438476497,0.014024,71352.0,71328.0,0.56087818]
[1770438476698,0.47743235,71358.0,71322.0,0.10891826]
[1770438476910,0.014027,71340.0,71318.0,0.014031]
[1770438477109,0.014027,71337.0,71316.0,0.10891826]
[1770438477609,0.014027,71337.0,71315.0,0.10891826]
[1770438478310,0.014028,71334.0,71315.0,0.10891826]
[1770438478612,0.014028,71334.0,71314.0,0.10891826]
[1770438478809,0.014026,71342.0,71318.0,0.014031]
[1770438479000,0.014027,71339.0,71318.0,0.014031]
[1770438479506,0.014027,71337.0,71315.0,0.014031]
[1770438479707,0.014025,71345.0,71321.0,0.56087918]
[1770438479909,0.43117496,71354.0,71321.0,0.54684918]
[1770438480109,0.014026,71344.0,71322.0,0.56087918]
[1770438480309,0.43117496,71366.0,71326.0,0.54684918]
[1770438480506,0.014024,71354.0,71330.0,0.54684918]
[1770438480702,0.014024,71351.0,71330.0,0.56087718]
[1770438481405,0.44705334,71361.0,71323.0,0.10891826]
[1770438481607,0.014027,71337.0,71317.0,0.12294926]
[1770438481809,0.014027,71338.0,71315.0,0.014031]
[1770438482001,0.44705334,71343.0,71311.0,0.12295026]
[1770438482002,0.014027,71335.0,71311.0,0.12295026]
[1770438482207,0.014027,71335.0,71314.0,0.014031]
[1770438482412,0.014028,71332.0,71310.0,0.12295026]
[1770438482714,0.014028,71333.0,71313.0,0.014032]
[1770438483105,0.014028,71333.0,71309.0,0.54684918]
[1770438483106,0.44857003,71341.0,71307.0,0.10891826]
[1770438483307,0.01403,71324.0,71301.0,0.10891826]
[1770438483508,0.01403,71321.0,71301.0,0.10891826]
[1770438483711,0.014029,71325.0,71303.0,0.014034]
[1770438484413,0.44857003,71338.0,71315.0,0.56088018]
[1770438484414,0.014027,71338.0,71315.0,0.56088018]
[1770438484612,0.001,71341.0,71315.0,0.54684918]
[1770438484613,0.014028,71333.0,71315.0,0.54684918]
[1770438485117,0.014028,71333.0,71313.0,0.10891826]
[1770438485714,0.001,71341.0,71308.0,0.10891826]
[1770438485715,0.014029,71327.0,71308.0,0.10891826]
[1770438485910,0.01403,71324.0,71308.0,0.10891826]
[1770438486111,0.01403,71324.0,71307.0,0.10891826]
[1770438486311,0.01403,71321.0,71307.0,0.10891826]
[1770438486521,0.01403,71321.0,71304.0,0.65576744]
[1770438486706,0.44621177,71329.0,71303.0,0.10891826]
[1770438486908,0.44621177,71327.0,71291.0,0.16276285]
[1770438487219,0.014032,71315.0,71294.0,0.014035]
[1770438487413,0.44860573,71305.0,71282.0,0.16276285]
[1770438487718,0.014036,71292.0,71273.0,0.16276285]
[1770438487912,0.014036,71292.0,71274.0,0.21081161]
[1770438488115,0.014037,71289.0,71269.0,0.16276285]
[1770438488314,0.13790878,71320.0,71265.0,0.0002]
[1770438488315,0.44860573,71295.0,71265.0,0.0002]
[1770438488516,0.44860573,71292.0,71265.0,0.0002]
[1770438488715,0.014037,71287.0,71263.0,0.014042]
[1770438488917,0.014037,71287.0,71264.0,0.21083728]
[1770438489117,0.014037,71287.0,71265.0,0.21083728]
[1770438489319,0.014037,71287.0,71251.0,0.27342051]
[1770438489320,0.44860573,71292.0,71261.0,0.16276285]
[1770438489519,0.014039,71278.0,71262.0,0.21084426]
[1770438489722,0.01404,71272.0,71248.0,0.16276285]
[1770438489919,0.014041,71269.0,71249.0,0.21087172]
[1770438490119,0.014041,71269.0,71250.0,0.21088458]
[1770438490420,0.014039,71277.0,71245.0,0.16276285]
[1770438490620,0.014039,71277.0,71246.0,0.77726455]
[1770438490818,0.014036,71294.0,71235.0,0.20471828]
[1770438490819,0.22879,71267.0,71235.0,0.20471828]
[1770438491012,0.22879,71267.0,71225.0,0.34109269]
[1770438491013,0.22879,71262.0,71223.0,0.7823556]
[1770438491213,0.24136791,71260.0,71228.0,0.014048]
[1770438491522,0.22732591,71260.0,71223.0,0.56638832]
[1770438491720,0.014042,71259.0,71224.0,0.58043732]
[1770438491916,0.22732591,71260.0,71224.0,0.56638832]
[1770438492115,0.014041,71264.0,71213.0,0.070259]
[1770438492116,0.014041,71264.0,71232.0,0.58043632]
[1770438492323,0.014042,71260.0,71232.0,0.56638832]
[1770438492516,0.22732591,71262.0,71233.0,0.014047]
[1770438492716,0.014042,71261.0,71233.0,0.014047]
[1770438493023,0.22732591,71284.0,71244.0,0.56638832]
[1770438493211,0.014039,71275.0,71246.0,0.56638832]
[1770438493912,0.014038,71280.0,71246.0,0.56638832]
[1770438494112,0.23994005,71295.0,71260.0,0.56638832]
[1770438494316,0.01404,71272.0,71247.0,0.56638832]
[1770438494521,0.23994005,71276.0,71236.0,0.56638832]
[1770438494716,0.014042,71263.0,71236.0,0.56638832]
[1770438495115,0.014041,71268.0,71237.0,0.014047]
[1770438495615,0.014041,71268.0,71220.0,0.13810712]
[1770438495616,0.014041,71268.0,71239.0,0.014046]
[1770438495816,0.01404,71274.0,71243.0,0.014045]
[1770438496219,0.014041,71267.0,71240.0,0.014046]
[1770438496418,0.01404,71272.0,71244.0,0.014045]
[1770438497021,0.001,71274.0,71248.0,0.014044]
[1770438497228,0.001,71274.0,71248.0,0.58043232]
[1770438497430,0.18879895,71274.0,71237.0,0.014047]
[1770438497720,0.014041,71264.0,71233.0,0.56638832]
[1770438498423,0.18779895,71248.0,71220.0,0.0002]
[1770438498623,0.014046,71241.0,71214.0,0.014051]
[1770438498826,0.18779895,71248.0,71210.0,0.56638832]
[1770438498827,0.014047,71237.0,71210.0,0.56638832]
[1770438499125,0.15952556,71245.0,71210.0,0.58044032]
[1770438499327,0.014049,71226.0,71200.0,0.56638832]
[1770438499524,0.014048,71232.0,71201.0,0.58044232]
[1770438500119,0.014047,71237.0,71205.0,0.58044132]
[1770438500321,0.014045,71248.0,71218.0,0.56638832]
[1770438500523,0.014044,71253.0,71224.0,0.56638832]
[1770438500726,0.15952556,71260.0,71224.0,0.56638832]
[1770438501030,0.014046,71240.0,71212.0,0.56638832]
[1770438501726,0.014047,71236.0,71212.0,0.56638832]
[1770438501929,0.1850168,71246.0,71207.0,0.0002]
[1770438501930,0.014048,71231.0,71207.0,0.0002]
[1770438502123,0.014048,71231.0,71203.0,0.014053]
[1770438502424,0.1850168,71242.0,71207.0,0.58044132]
[1770438502627,0.014048,71233.0,71207.0,0.56638832]
[1770438503324,0.014047,71238.0,71207.0,0.56638832]
[1770438503627,0.014047,71238.0,71209.0,0.56638832]
[1770438503926,0.014046,71243.0,71214.0,0.56638832]
[1770438504238,0.014046,71239.0,71217.0,0.56638832]
[1770438504528,0.01305,71218.0,71199.0,0.0140448]
[1770438504720,0.01405,71218.0,71199.0,0.0140448]
[1770438505318,0.54008338,71224.0,71199.0,0.0140448]
[1770438505522,0.014052,71211.0,71184.0,0.014057]
[1770438505742,0.54008338,71219.0,71183.0,0.56638832]
[1770438505927,0.54008338,71219.0,71183.0,0.58044532]
[1770438505928,0.014051,71216.0,71183.0,0.58044532]
[1770438506227,0.54008338,71215.0,71183.0,0.56638832]
[1770438506627,0.54008338,71215.0,71184.0,0.014057]
[1770438507229,0.014052,71210.0,71184.0,0.014057]
[1770438507432,0.014053,71207.0,71184.0,0.014057]
[1770438507733,0.014053,71207.0,71183.0,0.56638832]
[1770438508029,0.014053,71204.0,71183.0,0.56638832]
[1770438508230,0.014053,71208.0,71183.0,0.56638832]
[1770438508532,0.54008338,71226.0,71187.0,0.56638832]
[1770438508733,0.014052,71213.0,71188.0,0.58064432]
[1770438509232,0.01405,71219.0,71192.0,0.56638832]
[1770438509434,0.01405,71223.0,71199.0,0.56638832]
[1770438509634,0.014049,71228.0,71201.0,0.014054]
[1770438509823,0.014049,71225.0,71201.0,0.58044232]
[1770438510026,0.01405,71222.0,71201.0,0.56638832]
[1770438510429,0.54008338,71236.0,71201.0,0.56638832]
[1770438510729,0.014042,71263.0,71201.0,0.56638832]
[1770438510730,0.014048,71233.0,71201.0,0.56638832]
[1770438510920,0.014048,71232.0,71210.0,0.56638832]
[1770438511326,0.54008338,71248.0,71212.0,0.014052]
[1770438511628,0.54008338,71248.0,71212.0,0.58044032]
[1770438511832,0.014047,71235.0,71212.0,0.58044032]
[1770438512033,0.001,71236.0,71212.0,0.56638832]
[1770438512234,0.001,71236.0,71215.0,0.56638832]
[1770438512538,0.014047,71235.0,71215.0,0.56638832]
[1770438513033,0.014046,71240.0,71216.0,0.58043932]
[1770438513222,0.014047,71237.0,71216.0,0.56638832]
[1770438515424,0.014047,71237.0,71217.0,0.014051]
[1770438516130,0.52927913,71255.0,71220.0,0.53972341]
[1770438516332,0.52927913,71246.0,71212.0,0.014052]
[1770438516529,0.014048,71232.0,71212.0,0.014052]
[1770438516730,0.014047,71236.0,71215.0,0.014051]
[1770438516926,0.014048,71233.0,71211.0,0.014052]
[1770438517132,0.52927913,71232.0,71202.0,0.014054]
[1770438517332,0.52927913,71232.0,71203.0,0.21101607]
[1770438517635,0.52927913,71232.0,71199.0,0.53972341]
[1770438517832,0.52927913,71243.0,71206.0,0.53972341]
[1770438518036,0.014048,71232.0,71210.0,0.014052]
[1770438518237,0.52927913,71241.0,71200.0,0.20406791]
[1770438518434,0.014045,71246.0,71199.0,0.53972341]
[1770438518435,0.01405,71220.0,71201.0,0.21100557]
[1770438518729,0.014051,71217.0,71194.0,0.014055]
[1770438518931,0.014051,71217.0,71196.0,0.014055]
[1770438519333,0.014051,71214.0,71192.0,0.014055]
[1770438519526,0.014051,71214.0,71193.0,0.21104433]
[1770438519730,0.014051,71214.0,71194.0,0.21104433]
[1770438519926,0.014051,71214.0,71195.0,0.21104433]
[1770438520126,0.014051,71214.0,71196.0,0.21104433]
[1770438520329,0.014051,71214.0,71197.0,0.21104433]
[1770438520534,0.014052,71211.0,71198.0,0.21104433]
[1770438520741,0.014052,71211.0,71194.0,0.20406791]
[1770438520937,0.014051,71215.0,71198.0,0.16501957]
[1770438521535,0.014051,71215.0,71197.0,0.16501957]
[1770438521834,0.52927913,71227.0,71198.0,0.21104461]
[1770438521835,0.014053,71207.0,71198.0,0.21104461]
[1770438522039,0.014053,71204.0,71190.0,0.16501957]
[1770438522336,0.014053,71208.0,71191.0,0.21106614]
[1770438522539,0.014052,71210.0,71192.0,0.21105897]
[1770438522740,0.014052,71210.0,71189.0,0.53972341]
[1770438522741,0.014052,71210.0,71190.0,0.16501957]
[1770438522938,0.52927913,71221.0,71191.0,0.37608605]
[1770438523141,0.014052,71209.0,71192.0,0.21106648]
[1770438523338,0.001,71215.0,71190.0,0.16501957]
[1770438523643,0.001,71215.0,71191.0,0.2110666]
[1770438523943,0.001,71215.0,71190.0,0.16501957]
[1770438524134,0.014052,71210.0,71191.0,0.21106846]
[1770438524340,0.014052,71210.0,71192.0,0.37608803]
[1770438524539,0.014052,71210.0,71192.0,0.16501957]
[1770438524735,0.53027913,71221.0,71192.0,0.17907557]
[1770438524940,0.014052,71213.0,71194.0,0.70474298]
[1770438525242,0.001,71215.0,71199.0,0.53972341]
[1770438525446,0.001,71215.0,71202.0,0.16501957]
[1770438525641,0.014047,71235.0,71209.0,0.53972341]
[1770438525843,0.52927913,71243.0,71214.0,0.53972341]
[1770438526041,0.014047,71234.0,71216.0,0.53972341]
[1770438526641,0.001,71221.0,71216.0,0.53972341]
[1770438526849,0.52927913,71237.0,71209.0,0.20406791]
[1770438527143,0.01405,71223.0,71208.0,0.20406791]
[1770438527347,0.01405,71223.0,71209.0,0.4150838]
[1770438527544,0.01405,71223.0,71208.0,0.20406791]
[1770438527851,0.01405,71223.0,71207.0,0.20406791]
[1770438528050,0.014049,71227.0,71208.0,0.21102195]
[1770438528254,0.014049,71227.0,71208.0,0.20406791]
[1770438528756,0.53027913,71237.0,71208.0,0.20406791]
[1770438528952,0.52927913,71235.0,71208.0,0.20406791]
[1770438529352,0.014049,71224.0,71208.0,0.20406791]
[1770438529553,0.01405,71221.0,71207.0,0.20406791]
[1770438529847,0.014049,71225.0,71207.0,0.20406791]
[1770438530046,0.014049,71225.0,71209.0,0.20406791]
[1770438530454,0.014048,71229.0,71209.0,0.20406791]
[1770438530751,0.52927913,71245.0,71210.0,0.53972341]
[1770438530957,0.014049,71227.0,71210.0,0.53972341]
[1770438531152,0.014049,71227.0,71210.0,0.74379132]
[1770438531355,0.014049,71226.0,71210.0,0.74379132]
[1770438531555,0.014048,71231.0,71210.0,0.53972341]
[1770438531750,0.52927913,71241.0,71210.0,0.53972341]
[1770438532157,0.014049,71228.0,71210.0,0.53972341]
[1770438532659,0.52927913,71237.0,71210.0,0.53972341]
[1770438532855,0.014049,71226.0,71210.0,0.53972341]
[1770438533060,0.52927913,71247.0,71212.0,0.20406791]
[1770438533262,0.014048,71232.0,71215.0,0.53972341]
[1770438533559,0.014048,71232.0,71215.0,0.74379132]
[1770438534554,0.52927913,71243.0,71215.0,0.20406791]
[1770438534859,0.014048,71231.0,71213.0,0.20406791]
[1770438535061,0.52927913,71238.0,71212.0,0.20406791]
[1770438535453,0.014049,71226.0,71211.0,0.20406791]
[1770438536149,0.014049,71226.0,71208.0,0.20406791]
[1770438536348,0.01405,71223.0,71208.0,0.20406791]
[1770438536753,0.52927913,71238.0,71209.0,0.53972341]
[1770438536956,0.014049,71227.0,71211.0,0.53972341]
[1770438537149,0.52927913,71236.0,71209.0,0.20406791]
[1770438537357,0.52927913,71233.0,71208.0,0.20406791]
[1770438537556,0.52927913,71233.0,71206.0,0.20406791]
[1770438537753,0.52927913,71233.0,71205.0,0.20406791]
[1770438537754,0.01405,71220.0,71205.0,0.20406791]
[1770438537954,0.01405,71220.0,71204.0,0.20406791]
[1770438538160,0.01405,71220.0,71203.0,0.20406791]
[1770438538761,0.01405,71220.0,71203.0,0.74379132]
[1770438538957,0.014051,71217.0,71203.0,0.74379132]
[1770438539154,0.014052,71209.0,71201.0,0.20406791]
[1770438539362,0.014051,71214.0,71198.0,0.74379132]
[1770438539558,0.014051,71214.0,71198.0,0.53972341]
[1770438539759,0.52927913,71231.0,71199.0,0.53972341]
[1770438539960,0.014051,71218.0,71203.0,0.20406791]
[1770438540170,0.01405,71222.0,71204.0,0.21102674]
[1770438540369,0.01405,71222.0,71203.0,0.74379132]
[1770438540667,0.01405,71219.0,71204.0,0.21102435]
[1770438540869,0.01405,71219.0,71203.0,0.74379132]
[1770438541064,0.01405,71219.0,71204.0,0.21102753]
[1770438541264,0.01405,71219.0,71205.0,0.53972341]
[1770438541670,0.52927913,71218.0,71189.0,0.27209501]
[1770438541968,0.001,71231.0,71189.0,0.27209501]
[1770438541969,0.014051,71214.0,71199.0,0.53972341]
[1770438542560,0.014048,71230.0,71190.0,0.53972341]
[1770438542561,0.014053,71207.0,71190.0,0.53972341]
[1770438542771,0.014053,71205.0,71191.0,0.21105825]
[1770438542970,0.014053,71205.0,71192.0,0.21105825]
[1770438543166,0.014052,71209.0,71193.0,0.21105825]
[1770438543464,0.014052,71209.0,71190.0,0.53972341]
[1770438543664,0.014051,71214.0,71192.0,0.55377941]
[1770438543867,0.52927913,71226.0,71195.0,0.53972341]
[1770438544063,0.014052,71210.0,71195.0,0.53972341]
[1770438544769,0.014052,71210.0,71170.0,0.41994337]
[1770438544770,0.52927913,71226.0,71197.0,0.53972341]
[1770438545468,0.014052,71213.0,71197.0,0.53972341]
[1770438546663,0.014052,71210.0,71198.0,0.21103558]
[1770438546871,0.014052,71210.0,71197.0,0.65027267]
[1770438547367,0.014053,71207.0,71196.0,0.11056125]
[1770438547871,0.56433184,71223.0,71196.0,0.65235368]
[1770438548066,0.014052,71211.0,71196.0,0.65235368]
[1770438548371,0.014053,71208.0,71196.0,0.11056125]
[1770438548571,0.014053,71208.0,71195.0,0.11056125]
[1770438549162,0.014053,71208.0,71195.0,0.11057506]
[1770438549367,0.014051,71214.0,71197.0,0.66264547]
[1770438550169,0.014051,71214.0,71197.0,0.55207041]
[1770438551473,0.014052,71211.0,71197.0,0.55207041]
[1770438552469,0.57112534,71238.0,71203.0,0.55207041]
[1770438552869,0.01405,71223.0,71203.0,0.55207041]
[1770438553076,0.01405,71220.0,71203.0,0.55207041]
[1770438553372,0.014051,71217.0,71203.0,0.55207041]
[1770438553578,0.014051,71214.0,71194.0,0.11057506]
[1770438553772,0.014051,71214.0,71194.0,0.66264547]
[1770438554081,0.014051,71214.0,71194.0,0.55207041]
[1770438554376,0.014051,71218.0,71198.0,0.55207041]
[1770438554581,0.014051,71218.0,71200.0,0.55207041]
[1770438556183,0.01405,71222.0,71204.0,0.55207041]
[1770438556370,0.58517334,71230.0,71204.0,0.55207041]
[1770438556572,0.57112534,71227.0,71196.0,0.56612541]
[1770438556978,0.014051,71215.0,71196.0,0.56612541]
[1770438557784,0.014048,71230.0,71196.0,0.56612541]
[1770438557785,0.57112534,71222.0,71196.0,0.55207041]
[1770438558081,0.014052,71212.0,71196.0,0.55207041]
[1770438560370,0.014052,71212.0,71197.0,0.32162572]
[1770438560575,0.014052,71209.0,71197.0,0.11057506]
[1770438560775,0.014052,71213.0,71196.0,0.11057506]
[1770438561273,0.014052,71213.0,71197.0,0.32162656]
[1770438561480,0.014052,71213.0,71197.0,0.66264547]
[1770438561679,0.57112534,71239.0,71201.0,0.66264547]
[1770438561879,0.014039,71275.0,71202.0,0.32162648]
[1770438561880,0.57112534,71227.0,71202.0,0.32162648]
[1770438562182,0.57112534,71224.0,71200.0,0.11057506]
[1770438562480,0.57112534,71224.0,71199.0,0.11057506]
[1770438562682,0.57112534,71233.0,71199.0,0.66264547]
[1770438562874,0.014051,71218.0,71199.0,0.65764547]
[1770438563074,0.014051,71215.0,71199.0,0.65764547]
[1770438564677,0.014051,71215.0,71183.0,0.34109269]
[1770438564678,0.014053,71205.0,71191.0,0.16587821]
[1770438564877,0.014053,71205.0,71190.0,0.71794862]
[1770438565085,0.014053,71205.0,71190.0,0.55207041]
[1770438566978,0.57112534,71219.0,71190.0,0.55207041]
[1770438567283,0.014054,71202.0,71190.0,0.55207041]
[1770438570486,0.014054,71202.0,71186.0,0.16587821]
[1770438570679,0.014054,71201.0,71187.0,0.21107295]
[1770438570878,0.014054,71201.0,71188.0,0.21107295]
[1770438571186,0.57112534,71211.0,71186.0,0.16587821]
[1770438571187,0.014054,71199.0,71186.0,0.16587821]
[1770438571375,0.014055,71196.0,71184.0,0.16587821]
[1770438571579,0.014055,71196.0,71182.0,0.16587821]
[1770438571877,0.014055,71196.0,71183.0,0.21108631]
[1770438572078,0.014055,71194.0,71181.0,0.71794862]
[1770438572286,0.014055,71194.0,71181.0,0.55207041]
[1770438574284,0.014055,71196.0,71181.0,0.55207041]
[1770438574586,0.014055,71196.0,71182.0,0.21109192]
[1770438574887,0.014055,71193.0,71183.0,0.55207041]
[1770438575384,0.014055,71196.0,71183.0,0.55207041]
[1770438575979,0.014055,71193.0,71179.0,0.53700873]
[1770438576181,0.014051,71213.0,71181.0,0.55106673]
[1770438576381,0.014055,71198.0,71183.0,0.53700873]
[1770438576576,0.014055,71196.0,71183.0,0.53700873]
[1770438577288,0.57992028,71195.0,71169.0,0.2074611]
[1770438577582,0.014057,71187.0,71171.0,0.53700873]
[1770438578185,0.014057,71185.0,71171.0,0.53700873]
[1770438578782,0.014053,71204.0,71171.0,0.53700873]
[1770438578980,0.014055,71198.0,71179.0,0.53700873]
[1770438579281,0.014054,71202.0,71181.0,0.53700873]
[1770438579481,0.014054,71202.0,71182.0,0.21108984]
[1770438579681,0.014054,71199.0,71183.0,0.74809375]
[1770438579890,0.014054,71199.0,71183.0,0.53700873]
[1770438580384,0.014055,71196.0,71183.0,0.53700873]
[1770438582393,0.014056,71191.0,71174.0,0.53700873]
[1770438582988,0.014057,71187.0,71174.0,0.53700873]
[1770438583184,0.014058,71181.0,71162.0,0.2074611]
[1770438583389,0.014058,71181.0,71164.0,0.53700873]
[1770438583588,0.014058,71181.0,71165.0,0.21111853]
[1770438583788,0.014058,71181.0,71166.0,0.21111853]
[1770438583989,0.014058,71181.0,71165.0,0.53700873]
[1770438584291,0.014058,71181.0,71166.0,0.7481398]
[1770438584594,0.014057,71185.0,71167.0,0.53700873]
[1770438584786,0.014058,71178.0,71159.0,0.2074611]
[1770438584987,0.014058,71178.0,71160.0,0.74814145]
[1770438585191,0.014058,71178.0,71162.0,0.53700873]
[1770438585787,0.57992028,71191.0,71162.0,0.53700873]
[1770438586192,0.014058,71183.0,71162.0,0.55106973]
[1770438586391,0.014057,71184.0,71166.0,0.53700873]
[1770438586588,0.57992028,71200.0,71166.0,0.53700873]
[1770438586788,0.014057,71186.0,71168.0,0.53700873]
[1770438587895,0.57992028,71197.0,71168.0,0.53700873]
[1770438588197,0.014057,71186.0,71168.0,0.53700873]
[1770438588398,0.57992028,71197.0,71168.0,0.53700873]
[1770438588894,0.014056,71190.0,71170.0,0.53700873]
[1770438589092,0.014057,71184.0,71170.0,0.53700873]
[1770438590594,0.014056,71188.0,71170.0,0.53700873]
[1770438590795,0.57992028,71212.0,71181.0,0.53700873]
[1770438591701,0.014054,71198.0,71181.0,0.53700873]
[1770438593200,0.57992028,71212.0,71181.0,0.53700873]
[1770438593201,0.014054,71202.0,71181.0,0.53700873]
[1770438593396,0.01405,71221.0,71183.0,0.53700873]
[1770438593397,0.014053,71206.0,71183.0,0.53700873]
[1770438593595,0.070242,71231.0,71190.0,0.53700873]
[1770438593596,0.014049,71225.0,71190.0,0.53700873]
[1770438593900,0.014052,71211.0,71190.0,0.53700873]
[1770438594102,0.014052,71211.0,71192.0,0.53700873]
[1770438594288,0.014052,71212.0,71192.0,0.53700873]
[1770438594488,0.57992028,71230.0,71192.0,0.53700873]
[1770438594794,0.57992028,71239.0,71203.0,0.53700873]
[1770438594993,0.028101,71224.0,71203.0,0.53700873]
[1770438595302,0.57992028,71239.0,71205.0,0.53700873]
[1770438595493,0.57992028,71248.0,71210.0,0.53700873]
[1770438595694,0.57992028,71245.0,71210.0,0.53700873]
[1770438595998,0.070223,71250.0,71210.0,0.53700873]
[1770438595999,0.014048,71229.0,71210.0,0.53700873]
[1770438596393,0.65014328,71250.0,71210.0,0.53700873]
[1770438596991,0.001,71245.0,71210.0,0.53700873]
[1770438597200,0.001,71245.0,71211.0,0.014052]
[1770438597393,0.014048,71233.0,71212.0,0.53700873]
[1770438597594,0.015045,71245.0,71223.0,0.53700873]
[1770438598000,0.001,71245.0,71223.0,0.53700873]
[1770438598202,0.014044,71250.0,71225.0,0.53700873]
[1770438598499,0.014042,71260.0,71234.0,0.53700873]
[1770438599104,0.014042,71260.0,71237.0,0.53700873]
[1770438600398,0.57992028,71248.0,71219.0,0.53700873]
[1770438600698,0.57992028,71288.0,71251.0,0.53700873]
[1770438600896,0.014039,71277.0,71251.0,0.53700873]
[1770438601100,0.01404,71271.0,71251.0,0.53700873]
[1770438601295,0.014042,71263.0,71251.0,0.53700873]
[1770438601496,0.014041,71264.0,71251.0,0.53700873]
[1770438601802,0.57992028,71282.0,71251.0,0.53700873]
[1770438601996,0.014041,71267.0,71251.0,0.53700873]
[1770438602195,0.014042,71263.0,71239.0,0.014046]
[1770438602396,0.014042,71263.0,71227.0,0.53700873]
[1770438602397,0.57992028,71263.0,71227.0,0.53700873]
[1770438602701,0.57992028,71263.0,71200.0,0.2085763]
[1770438602702,0.57992028,71254.0,71217.0,0.55105973]
[1770438603097,0.014045,71247.0,71221.0,0.01405]
[1770438603400,0.014045,71247.0,71222.0,0.53700873]
[1770438603800,0.57992028,71250.0,71222.0,0.53700873]
[1770438603801,0.014046,71243.0,71222.0,0.53700873]
[1770438604796,0.014046,71239.0,71222.0,0.53700873]
[1770438605305,0.014047,71236.0,71213.0,0.55105973]
[1770438605806,0.014046,71240.0,71213.0,0.55105973]
[1770438606005,0.014045,71246.0,71224.0,0.5342876]
[1770438606198,0.014046,71240.0,71214.0,0.5342876]
[1770438606395,0.014048,71233.0,71214.0,0.5342876]
[1770438607203,0.01405,71220.0,71205.0,0.5342876]
[1770438607395,0.52929453,71232.0,71193.0,0.014055]
[1770438607706,0.01405,71220.0,71196.0,0.5342876]
[1770438609403,0.53181948,71244.0,71198.0,0.56422762]
[1770438609706,0.53181948,71244.0,71203.0,0.56422762]
[1770438609707,0.014048,71229.0,71203.0,0.56422762]
[1770438610213,0.53181948,71254.0,71211.0,0.56422762]
[1770438611002,0.53181948,71245.0,71211.0,0.56422762]
[1770438611504,0.014049,71228.0,71211.0,0.56422762]
[1770438611704,0.014048,71232.0,71211.0,0.57827962]
[1770438612102,0.53181948,71243.0,71211.0,0.56422762]
[1770438612302,0.014048,71229.0,71211.0,0.56422762]